[Event "Championnat du monde jeunes U10"]
[Date "2024.11.26"]
[White "Todmunkh, Turbat"]
[Black "Wang, Rocky"]
[WhiteElo "1773"]
[BlackElo "1853"]
[Round "11.18"]
[Result "1/2-1/2"]
[TimeControl "5400+30"]

1. e4 {[%clk 1:30:56]} 1... c5 {[%clk 1:31:18]} 2. Nf3 {[%clk 1:31:22]} 2... Nc6
{[%clk 1:31:16]} 3. Bb5 {[%clk 1:31:46]} 3... Na5 {[%clk 1:31:02]} 4. c3 {[%clk
1:23:25]} 4... a6 {[%clk 1:30:44]} 5. Ba4 {[%clk 1:23:50]} 5... b5 {[%clk
1:30:58]} 6. Bc2 {[%clk 1:24:15]} 6... Bb7 {[%clk 1:29:17]} 7. O-O {[%clk
1:24:35]} 7... e6 {[%clk 1:25:20]} 8. d4 {[%clk 1:24:50]} 8... Nf6 {[%clk
1:24:18]} 9. Re1 {[%clk 1:20:59]} 9... cxd4 {[%clk 1:21:55]} 10. cxd4 {[%clk
1:21:05]} 10... Be7 {[%clk 1:21:15]} 11. Bg5 {[%clk 1:15:27]} 11... h6 {[%clk
1:18:16]} 12. Bh4 {[%clk 1:14:20]} 12... O-O {[%clk 1:11:09]} 13. Qd3 {[%clk
0:50:55]} 13... g6 {[%clk 1:04:16]} 14. Nbd2 {[%clk 0:48:38]} 14... d5 {[%clk
1:02:31]} 15. Bxf6 {[%clk 0:45:19]} 15... Bxf6 {[%clk 1:02:37]} 16. e5 {[%clk
0:43:47]} 16... Bg7 {[%clk 1:00:17]} 17. h4 {[%clk 0:39:28]} 17... h5 {[%clk
0:54:24]} 18. Ng5 {[%clk 0:39:18]} 18... Nc4 {[%clk 0:54:22]} 19. b3 {[%clk
0:30:19]} 19... Nxd2 {[%clk 0:51:11]} 20. Qxd2 {[%clk 0:30:04]} 20... Bh6 {[%clk
0:49:21]} 21. f4 {[%clk 0:30:07]} 21... Qe7 {[%clk 0:42:58]} 22. Rac1 {[%clk
0:27:46]} 22... Rac8 {[%clk 0:39:30]} 23. Bb1 {[%clk 0:22:34]} 23... Rfe8 {[%clk
0:37:26]} 24. g3 {[%clk 0:21:57]} 24... Bf8 {[%clk 0:35:31]} 25. Qd3 {[%clk
0:14:55]} 25... Qd7 {[%clk 0:32:32]} 26. Rf1 {[%clk 0:11:20]} 26... Ba3 {[%clk
0:29:59]} 27. Rxc8 {[%clk 0:10:07]} 27... Rxc8 {[%clk 0:28:55]} 28. g4 {[%clk
0:10:33]} 28... hxg4 {[%clk 0:23:46]} 29. h5 {[%clk 0:10:54]} 29... Qe8 {[%clk
0:11:17]} 30. hxg6 {[%clk 0:09:21]} 30... fxg6 {[%clk 0:11:39]} 31. Qxg6+ {[%clk
0:09:36]} 31... Qxg6 {[%clk 0:12:05]} 32. Bxg6 {[%clk 0:10:01]} 32... Bb2 {[%clk
0:05:50]} 33. Nxe6 {[%clk 0:08:46]} 33... Rc6 {[%clk 0:06:15]} 34. f5 {[%clk
0:09:06]} 34... Bc8 {[%clk 0:06:13]} 35. Bf7+ {[%clk 0:07:55]} 35... Kh8 {[%clk
0:06:15]} 36. Rf4 {[%clk 0:06:43]} 36... Bxe6 {[%clk 0:04:15]} 37. fxe6 {[%clk
0:03:42]} 37... Ba3 {[%clk 0:03:36]} 38. Rxg4 {[%clk 0:03:55]} 38... Rc1+ {[%clk
0:03:15]} 39. Kg2 {[%clk 0:01:46]} 39... Rc2+ {[%clk 0:03:35]} 40. Kg3 {[%clk
0:01:35]} 40... Rc3+ {[%clk 0:02:40]} 41. Kf4 {[%clk 0:01:43]} 41... Rd3 {[%clk
0:02:12]} 42. Kf5 {[%clk 0:00:56]} 42... Rf3+ {[%clk 0:01:42]} 43. Kg6 {[%clk
0:01:20]} 43... Be7 {[%clk 0:01:59]} 44. Rg1 {[%clk 0:01:07]} 44... Rh3 {[%clk
0:02:10]} 45. Rg4 {[%clk 0:00:35]} 45... Rh1 {[%clk 0:02:09]} 46. Kf5 {[%clk
0:00:34]} 46... Rf1+ {[%clk 0:02:13]} 47. Kg6 {[%clk 0:00:59]} 47... Rh1 {[%clk
0:02:30]} 48. Rg2 {[%clk 0:01:18]} 48... Rh4 {[%clk 0:02:37]} 49. Rd2 {[%clk
0:00:32]} 49... Rh1 {[%clk 0:01:57]} 50. Kf5 {[%clk 0:00:40]} 50... Rf1+ {[%clk
0:02:00]} 51. Kg4 {[%clk 0:00:35]} 51... Kg7 {[%clk 0:01:18]} 52. Rg2 {[%clk
0:00:34]} 52... Kh7 {[%clk 0:01:21]} 53. Rh2+ {[%clk 0:00:35]} 53... Kg7 {[%clk
0:01:45]} 54. Rd2 {[%clk 0:01:01]} 54... Rg1+ {[%clk 0:01:53]} 55. Kf3 {[%clk
0:01:19]} 55... Rf1+ {[%clk 0:02:00]} 56. Rf2 {[%clk 0:00:33]} 56... Rxf2+
{[%clk 0:01:40]} 57. Kxf2 {[%clk 0:00:58]} 57... Kf8 {[%clk 0:02:03]} 58. Bh5
{[%clk 0:00:36]} 58... Bh4+ {[%clk 0:01:53]} 59. Ke3 {[%clk 0:01:01]} 59... Ke7
{[%clk 0:02:17]} 60. Bf3 {[%clk 0:00:38]} 60... Kxe6 {[%clk 0:02:40]} 61. Bg4+
{[%clk 0:00:58]} 61... Ke7 {[%clk 0:03:01]} 62. b4 {[%clk 0:00:34]} 62... Be1
{[%clk 0:03:07]} 63. Bc8 {[%clk 0:00:34]} 63... a5 {[%clk 0:02:52]} 64. bxa5
Bxa5 {[%clk 0:03:18]} 65. Ba6 {[%clk 0:00:48]} 65... b4 {[%clk 0:03:42]} 66. Bb7
{[%clk 0:01:14]} 66... Ke6 {[%clk 0:04:08]} 67. Bc8+ {[%clk 0:01:40]} 67... Ke7
{[%clk 0:04:34]} 68. Bf5 {[%clk 0:02:00]} 68... Bb6 {[%clk 0:04:35]} 69. Bg6
{[%clk 0:01:49]} 69... Ba7 {[%clk 0:04:33]} 70. Bh7 {[%clk 0:02:10]} 70... Kf7
{[%clk 0:04:55]} 1/2-1/2

[Variant "Standard"]
[Site "Europe Echecs"]

[Event "Championnat du monde jeunes U10"]
[Date "2024.11.26"]
[White "Tugsbilguun, Davganamdag"]
[Black "Melkonyan, Davit"]
[WhiteElo "1660"]
[BlackElo "1842"]
[Round "11.19"]
[Result "1-0"]
[TimeControl "5400+30"]

1. e4 {[%clk 1:30:59]} 1... e5 {[%clk 1:30:59]} 2. Nf3 {[%clk 1:31:21]} 2... Nc6
{[%clk 1:31:28]} 3. d4 {[%clk 1:31:44]} 3... exd4 {[%clk 1:31:55]} 4. Nxd4
{[%clk 1:32:11]} 4... Nf6 {[%clk 1:32:17]} 5. Nc3 {[%clk 1:32:36]} 5... Bb4
{[%clk 1:32:41]} 6. Nxc6 {[%clk 1:33:00]} 6... bxc6 {[%clk 1:33:10]} 7. Bd3
{[%clk 1:33:23]} 7... d5 {[%clk 1:33:36]} 8. exd5 {[%clk 1:33:49]} 8... cxd5
{[%clk 1:34:04]} 9. O-O {[%clk 1:34:12]} 9... O-O {[%clk 1:34:25]} 10. Bg5
{[%clk 1:34:40]} 10... c6 {[%clk 1:34:51]} 11. Qf3 {[%clk 1:35:06]} 11... Be7
{[%clk 1:35:16]} 12. h3 {[%clk 1:35:32]} 12... h6 {[%clk 1:34:53]} 13. Bf4
{[%clk 1:35:50]} 13... Bd6 {[%clk 1:35:02]} 14. Ne2 {[%clk 1:34:35]} 14... Rb8
{[%clk 1:25:44]} 15. b3 {[%clk 1:31:19]} 15... Re8 {[%clk 1:17:48]} 16. Rad1
{[%clk 1:28:00]} 16... Bxf4 {[%clk 1:10:43]} 17. Qxf4 {[%clk 1:23:48]} 17... Be6
{[%clk 1:10:20]} 18. Nd4 {[%clk 1:22:12]} 18... Rc8 {[%clk 1:06:37]} 19. Rfe1
{[%clk 1:09:42]} 19... Qc7 {[%clk 1:04:05]} 20. Qxc7 {[%clk 1:08:18]} 20... Rxc7
{[%clk 1:04:34]} 21. Bf5 {[%clk 1:08:14]} 21... Bxf5 {[%clk 0:59:35]} 22. Rxe8+
{[%clk 1:07:00]} 22... Nxe8 {[%clk 0:59:17]} 23. Nxf5 {[%clk 1:07:30]} 23... Nf6
{[%clk 0:58:49]} 24. f3 {[%clk 1:07:48]} 24... h5 {[%clk 0:59:01]} 25. Re1
{[%clk 1:06:29]} 25... g6 {[%clk 0:58:10]} 26. Re7 {[%clk 1:06:20]} 26... Rc8
{[%clk 0:56:22]} 27. Nh6+ {[%clk 1:03:00]} 27... Kg7 {[%clk 0:56:20]} 28. Rxf7+
{[%clk 1:03:02]} 28... Kxh6 {[%clk 0:56:37]} 29. Rxf6 {[%clk 1:03:32]} 29... Kg7
{[%clk 0:56:46]} 30. Rd6 {[%clk 1:03:51]} 30... Rc7 {[%clk 0:56:56]} 31. Kf2
{[%clk 1:03:29]} 31... a5 {[%clk 0:56:53]} 32. a4 {[%clk 1:00:58]} 32... Kf7
{[%clk 0:57:17]} 33. Rd8 {[%clk 1:01:00]} 33... Ke6 {[%clk 0:56:54]} 34. Rg8
{[%clk 0:59:31]} 34... Kf6 {[%clk 0:56:25]} 35. Ra8 {[%clk 0:59:10]} 35... Ke5
{[%clk 0:56:34]} 36. Ke3 {[%clk 0:59:01]} 36... d4+ {[%clk 0:56:17]} 37. Kd3
{[%clk 0:59:11]} 37... Kf4 {[%clk 0:56:21]} 38. Rxa5 {[%clk 0:59:02]} 38... c5
{[%clk 0:56:44]} 39. Ra6 {[%clk 0:54:55]} 39... Rg7 {[%clk 0:56:56]} 40. Ke2
{[%clk 0:54:58]} 40... Kg3 41. Kf1 h4 {[%clk 0:56:53]} 42. Rc6 {[%clk 0:55:19]}
42... d3 {[%clk 0:57:12]} 43. cxd3 {[%clk 0:55:39]} 43... Rd7 {[%clk 0:57:34]}
44. Rxg6+ {[%clk 0:56:01]} 44... Kh2 {[%clk 0:57:55]} 45. Ke2 {[%clk 0:56:25]}
45... Rb7 {[%clk 0:58:24]} 46. Rg4 {[%clk 0:56:03]} 46... Rxb3 {[%clk 0:58:52]}
47. Rxh4 {[%clk 0:56:22]} 47... Kxg2 {[%clk 0:59:17]} 48. Rc4 {[%clk 0:56:37]}
48... Kxh3 {[%clk 0:59:41]} 49. Rxc5 {[%clk 0:57:00]} 49... Ra3 {[%clk 1:00:07]}
50. Rc4 {[%clk 0:56:41]} 50... Kg3 {[%clk 1:00:27]} 51. Rg4+ {[%clk 0:55:17]}
1-0

[Variant "Standard"]
[Site "Europe Echecs"]

[Event "Championnat du monde jeunes U10"]
[Date "2024.11.26"]
[White "Anetov, Amirzhan"]
[Black "Nguyen Truong An Khang"]
[WhiteElo "1767"]
[BlackElo "1836"]
[Round "11.20"]
[Result "1-0"]
[TimeControl "5400+30"]

1. e4 {[%clk 1:31:00]} 1... c6 {[%clk 1:30:57]} 2. d4 {[%clk 1:31:24]} 2... d5
{[%clk 1:31:22]} 3. exd5 {[%clk 1:31:49]} 3... cxd5 {[%clk 1:31:30]} 4. Bd3
{[%clk 1:32:15]} 4... Nc6 {[%clk 1:31:56]} 5. c3 {[%clk 1:32:42]} 5... Nf6
{[%clk 1:32:20]} 6. Bf4 {[%clk 1:33:08]} 6... Bg4 {[%clk 1:26:22]} 7. Qb3 {[%clk
1:33:29]} 7... Qd7 {[%clk 1:25:38]} 8. Nd2 {[%clk 1:33:55]} 8... e6 {[%clk
1:24:06]} 9. Ngf3 {[%clk 1:34:19]} 9... Bd6 {[%clk 1:23:40]} 10. Bxd6 {[%clk
1:34:44]} 10... Qxd6 {[%clk 1:24:02]} 11. O-O {[%clk 1:35:09]} 11... O-O {[%clk
1:23:55]} 12. Rfe1 {[%clk 1:35:37]} 12... Nd7 {[%clk 1:14:12]} 13. Qd1 {[%clk
1:32:27]} 13... Bh5 {[%clk 1:07:43]} 14. Qc2 {[%clk 1:24:27]} 14... Bg6 {[%clk
1:01:59]} 15. Bxg6 {[%clk 1:24:45]} 15... hxg6 {[%clk 1:02:16]} 16. Re3 {[%clk
1:23:47]} 16... Rac8 {[%clk 0:52:18]} 17. Rae1 {[%clk 1:22:46]} 17... b5 {[%clk
0:49:01]} 18. h4 {[%clk 1:12:34]} 18... b4 {[%clk 0:41:24]} 19. h5 {[%clk
1:12:16]} 19... gxh5 {[%clk 0:38:03]} 20. Qd3 {[%clk 1:11:12]} 20... Ne7 {[%clk
0:34:17]} 21. c4 {[%clk 1:06:38]} 21... dxc4 {[%clk 0:27:03]} 22. Nxc4 {[%clk
1:06:59]} 22... Qa6 {[%clk 0:24:46]} 23. b3 {[%clk 1:05:30]} 23... Nf5 {[%clk
0:21:56]} 24. R3e2 {[%clk 1:04:14]} 24... Nb6 {[%clk 0:15:15]} 25. Nfe5 {[%clk
1:02:20]} 25... Nd5 {[%clk 0:13:05]} 26. Rc2 {[%clk 0:58:39]} 26... Qb7 {[%clk
0:08:01]} 27. Na5 {[%clk 0:56:27]} 27... Qe7 {[%clk 0:08:06]} 28. Nac6 {[%clk
0:54:48]} 28... Qg5 {[%clk 0:07:53]} 29. Rc5 {[%clk 0:47:34]} 29... Nf4 {[%clk
0:04:23]} 30. Qe4 {[%clk 0:46:50]} 30... Nxd4 {[%clk 0:02:01]} 31. Nd3 {[%clk
0:45:41]} 31... f5 {[%clk 0:01:56]} 32. Qxf4 {[%clk 0:44:44]} 32... Qxf4 {[%clk
0:01:55]} 33. Nxf4 {[%clk 0:45:08]} 33... Rxc6 {[%clk 0:01:42]} 34. Rxc6 {[%clk
0:45:17]} 34... Nxc6 {[%clk 0:02:04]} 35. Rxe6 {[%clk 0:45:38]} 35... Rc8 {[%clk
0:02:19]} 36. Nxh5 {[%clk 0:45:46]} 36... Kf7 {[%clk 0:02:43]} 37. Rd6 {[%clk
0:45:25]} 37... Ne5 {[%clk 0:02:04]} 38. Rd5 {[%clk 0:45:12]} 38... Ng4 {[%clk
0:01:50]} 39. Ng3 {[%clk 0:43:46]} 39... Ke6 {[%clk 0:00:43]} 40. Ra5 {[%clk
0:43:51]} 40... Rc7 {[%clk 0:00:59]} 41. Ra4 {[%clk 0:44:11]} 41... Rc1+ 42. Nf1
{[%clk 0:44:35]} 42... Rc2 {[%clk 0:00:58]} 43. f3 {[%clk 0:44:46]} 43... Ne5
{[%clk 0:01:10]} 44. Rxa7 {[%clk 0:44:46]} 44... Kf6 {[%clk 0:01:01]} 45. Ne3
{[%clk 0:44:28]} 45... Rd2 {[%clk 0:01:08]} 46. f4 {[%clk 0:43:20]} 46... Ng4
{[%clk 0:01:17]} 47. Ra6+ {[%clk 0:43:40]} 47... Kf7 {[%clk 0:01:36]} 48. Nxg4
{[%clk 0:43:58]} 48... fxg4 {[%clk 0:02:00]} 49. Kh2 {[%clk 0:44:09]} 49... Rd3
{[%clk 0:00:50]} 50. Ra4 {[%clk 0:44:25]} 50... Rd2 {[%clk 0:01:01]} 51. Kg3
{[%clk 0:43:52]} 51... Kf6 {[%clk 0:01:19]} 52. Rxb4 {[%clk 0:40:20]} 52... Rxa2
{[%clk 0:01:40]} 53. Rb6+ {[%clk 0:40:44]} 53... Kf5 {[%clk 0:02:01]} 54. Rb5+
{[%clk 0:41:03]} 54... Kf6 {[%clk 0:02:26]} 55. b4 {[%clk 0:40:38]} 55... Rb2
{[%clk 0:02:51]} 56. Rb7 {[%clk 0:36:21]} 56... g6 {[%clk 0:02:14]} 57. Rb5
{[%clk 0:36:25]} 57... Ra2 {[%clk 0:01:36]} 58. Rc5 {[%clk 0:36:25]} 58... Rb2
{[%clk 0:01:42]} 59. b5 {[%clk 0:36:45]} 59... Ra2 {[%clk 0:01:52]} 60. Rc8
{[%clk 0:32:58]} 60... Rb2 {[%clk 0:01:11]} 61. Rb8 {[%clk 0:32:56]} 61... Kf5
{[%clk 0:00:33]} 62. b6 {[%clk 0:33:20]} 62... Rb3+ {[%clk 0:00:33]} 63. Kh4
{[%clk 0:33:43]} 63... Kf6 {[%clk 0:00:34]} 64. Kxg4 {[%clk 0:32:14]} 64... Kf7
{[%clk 0:01:02]} 65. b7 {[%clk 0:29:48]} 65... Kg7 {[%clk 0:01:26]} 66. Kh4
{[%clk 0:30:14]} 66... Rb5 {[%clk 0:01:30]} 67. Kg3 {[%clk 0:26:47]} 67... Rb3+
{[%clk 0:01:24]} 68. Kf2 {[%clk 0:27:03]} 68... Rb5 {[%clk 0:01:24]} 69. g4
{[%clk 0:27:11]} 69... Kh7 {[%clk 0:01:29]} 70. Ke3 {[%clk 0:27:20]} 70... Rb3+
{[%clk 0:01:56]} 71. Kd2 {[%clk 0:27:46]} 71... Rb2+ {[%clk 0:02:10]} 72. Kc3
{[%clk 0:27:36]} 72... Rb6 {[%clk 0:02:29]} 73. f5 {[%clk 0:27:57]} 73... gxf5
{[%clk 0:02:49]} 74. gxf5 {[%clk 0:28:25]} 74... Kg7 {[%clk 0:03:02]} 75. f6+
{[%clk 0:28:48]} 75... Kf7 {[%clk 0:02:43]} 76. Rh8 {[%clk 0:29:13]} 76... Rxb7
{[%clk 0:02:39]} 77. Rh7+ {[%clk 0:29:38]} 1-0

[Variant "Standard"]
[Site "Europe Echecs"]

[Event "Championnat du monde jeunes U10"]
[Date "2024.11.26"]
[White "Akramov, Khasan"]
[Black "Skouroupathis, Kyriakos"]
[WhiteElo "1835"]
[BlackElo "1695"]
[Round "11.21"]
[Result "1-0"]
[TimeControl "5400+30"]

1. c4 {[%clk 1:30:59]} 1... e5 {[%clk 1:30:57]} 2. g3 {[%clk 1:31:24]} 2... Nc6
{[%clk 1:31:23]} 3. Nc3 {[%clk 1:31:44]} 3... f5 {[%clk 1:31:42]} 4. Nf3 {[%clk
1:32:06]} 4... Nf6 {[%clk 1:32:02]} 5. d4 {[%clk 1:32:02]} 5... e4 {[%clk
1:31:28]} 6. Nh4 {[%clk 1:31:59]} 6... d5 {[%clk 1:31:46]} 7. Bg5 {[%clk
1:31:36]} 7... Be7 {[%clk 1:24:50]} 8. e3 {[%clk 1:31:21]} 8... dxc4 {[%clk
1:14:22]} 9. Bxc4 {[%clk 1:27:26]} 9... Na5 {[%clk 1:11:36]} 10. Bxf6 {[%clk
1:25:45]} 10... Bxf6 {[%clk 1:08:21]} 11. Qh5+ {[%clk 1:25:52]} 11... g6 {[%clk
1:07:43]} 12. Nxg6 {[%clk 1:26:01]} 12... hxg6 {[%clk 1:07:58]} 13. Qxg6+ {[%clk
1:26:29]} 13... Kd7 {[%clk 1:07:32]} 14. Qxf5+ {[%clk 1:26:45]} 14... Ke8 {[%clk
1:07:37]} 15. Qxa5 {[%clk 1:26:44]} 15... b6 {[%clk 1:07:29]} 16. Qd5 {[%clk
1:26:43]} 16... Qxd5 {[%clk 1:07:15]} 17. Bxd5 {[%clk 1:27:04]} 17... Rb8 {[%clk
1:07:41]} 18. Nxe4 {[%clk 1:26:59]} 18... Be7 {[%clk 1:07:58]} 19. Nc3 1-0

[Variant "Standard"]
[Site "Europe Echecs"]

[Event "Championnat du monde jeunes U10"]
[Date "2024.11.26"]
[White "Perez Solanas, Hugo"]
[Black "Seo, Juwon"]
[WhiteElo "1824"]
[BlackElo "1721"]
[Round "11.22"]
[Result "0-1"]
[TimeControl "5400+30"]

1. e4 {[%clk 1:30:58]} 1... c5 {[%clk 1:30:45]} 2. Nf3 {[%clk 1:31:19]} 2... e6
{[%clk 1:29:52]} 3. d4 {[%clk 1:31:41]} 3... cxd4 {[%clk 1:30:16]} 4. Nxd4
{[%clk 1:32:01]} 4... Nc6 {[%clk 1:30:40]} 5. Nc3 {[%clk 1:32:22]} 5... Qc7
{[%clk 1:31:04]} 6. Ncb5 {[%clk 1:32:39]} 6... Qb8 {[%clk 1:31:27]} 7. Bd3
{[%clk 1:32:51]} 7... Nf6 {[%clk 1:30:34]} 8. O-O {[%clk 1:32:54]} 8... a6
{[%clk 1:28:24]} 9. Nxc6 {[%clk 1:33:12]} 9... bxc6 {[%clk 1:27:48]} 10. Nc3
{[%clk 1:33:13]} 10... d5 {[%clk 1:27:19]} 11. Qe2 {[%clk 1:33:18]} 11... Bd6
{[%clk 1:20:32]} 12. f4 {[%clk 1:31:21]} 12... Bc5+ {[%clk 1:16:42]} 13. Kh1
{[%clk 1:31:28]} 13... h5 {[%clk 1:10:04]} 14. Bd2 {[%clk 1:09:17]} 14... h4
{[%clk 0:50:13]} 15. Qf3 {[%clk 1:02:21]} 15... Bd7 {[%clk 0:32:45]} 16. Be1
{[%clk 0:42:52]} 16... Qb7 {[%clk 0:19:16]} 17. e5 {[%clk 0:41:22]} 17... Ng8
{[%clk 0:17:50]} 18. Qg4 {[%clk 0:40:16]} 18... Nh6 {[%clk 0:10:46]} 19. Qxh4
{[%clk 0:37:34]} 19... Be7 {[%clk 0:10:03]} 20. Qg3 {[%clk 0:37:28]} 20... O-O-O
{[%clk 0:10:04]} 21. h3 {[%clk 0:36:21]} 21... Rdg8 {[%clk 0:08:51]} 22. Qf2
{[%clk 0:32:13]} 22... c5 {[%clk 0:08:16]} 23. b3 {[%clk 0:32:01]} 23... Kc7
{[%clk 0:05:46]} 24. Na4 {[%clk 0:28:54]} 24... Qc6 {[%clk 0:04:49]} 25. Ba5+
{[%clk 0:28:07]} 25... Kb7 {[%clk 0:05:12]} 26. Nb6 {[%clk 0:23:00]} 26... Nf5
{[%clk 0:03:28]} 27. Bxf5 {[%clk 0:22:12]} 27... exf5 {[%clk 0:03:52]} 28. b4
{[%clk 0:18:27]} 28... d4 {[%clk 0:03:09]} 29. Kg1 {[%clk 0:17:49]} 29... g5
{[%clk 0:02:07]} 30. Nc4 {[%clk 0:07:13]} 30... gxf4 {[%clk 0:01:31]} 31. Bb6
{[%clk 0:07:02]} 31... Qd5 {[%clk 0:01:18]} 32. Bxc5 {[%clk 0:06:42]} 32... Bxc5
{[%clk 0:01:21]} 33. Na5+ {[%clk 0:07:02]} 33... Ka7 {[%clk 0:00:35]} 34. bxc5
{[%clk 0:07:20]} 34... Rxh3 {[%clk 0:00:42]} 35. Rab1 {[%clk 0:07:17]} 35...
Rhg3 {[%clk 0:00:43]} 36. Rb7+ {[%clk 0:06:25]} 36... Ka8 {[%clk 0:01:03]} 37.
Rb8+ {[%clk 0:05:45]} 37... Kxb8 {[%clk 0:01:18]} 38. Rb1+ {[%clk 0:06:04]}
38... Ka8 {[%clk 0:01:44]} 0-1

[Variant "Standard"]
[Site "Europe Echecs"]

[Event "Championnat du monde jeunes U10"]
[Date "2024.11.26"]
[White "Mulay, Vivan Prakash"]
[Black "Babeikin, Kiryl"]
[WhiteElo "1823"]
[BlackElo "1721"]
[Round "11.23"]
[Result "0-1"]
[TimeControl "5400+30"]

1. c4 {[%clk 1:30:54]} 1... e6 {[%clk 1:30:56]} 2. g3 {[%clk 1:31:05]} 2... d5
{[%clk 1:31:21]} 3. d4 {[%clk 1:31:32]} 3... Nf6 {[%clk 1:31:46]} 4. Bg2 {[%clk
1:32:00]} 4... Be7 {[%clk 1:32:09]} 5. Nf3 {[%clk 1:32:27]} 5... O-O {[%clk
1:32:30]} 6. O-O {[%clk 1:32:56]} 6... dxc4 {[%clk 1:32:51]} 7. Qc2 {[%clk
1:33:24]} 7... a6 {[%clk 1:33:11]} 8. a4 {[%clk 1:33:52]} 8... Bd7 {[%clk
1:33:34]} 9. Qxc4 {[%clk 1:34:18]} 9... Bc6 {[%clk 1:33:58]} 10. Bg5 {[%clk
1:34:45]} 10... Bd5 {[%clk 1:34:18]} 11. Qc2 {[%clk 1:35:12]} 11... Be4 {[%clk
1:34:29]} 12. Qc1 {[%clk 1:35:40]} 12... Nc6 {[%clk 1:34:27]} 13. e3 {[%clk
1:35:20]} 13... Nb4 {[%clk 1:27:15]} 14. Nc3 {[%clk 1:33:43]} 14... Bc6 {[%clk
1:27:38]} 15. a5 {[%clk 1:33:06]} 15... Rc8 {[%clk 1:21:02]} 16. Rd1 {[%clk
1:32:23]} 16... Qe8 {[%clk 1:09:14]} 17. Qd2 {[%clk 1:28:22]} 17... Ne4 {[%clk
1:07:08]} 18. Nxe4 {[%clk 1:27:40]} 18... Bxe4 {[%clk 1:07:32]} 19. Bxe7 {[%clk
1:27:29]} 19... Qxe7 {[%clk 1:07:56]} 20. Rdc1 {[%clk 0:56:36]} 20... Rfd8
{[%clk 1:07:37]} 21. Ne1 {[%clk 0:51:19]} 21... Bxg2 {[%clk 1:07:44]} 22. Nxg2
{[%clk 0:51:48]} 22... Qd6 {[%clk 1:03:54]} 23. Qc3 {[%clk 0:50:34]} 23... Nd5
{[%clk 1:03:26]} 24. Qc4 {[%clk 0:47:56]} 24... e5 {[%clk 0:58:41]} 25. e4
{[%clk 0:42:54]} 25... Ne7 {[%clk 0:56:23]} 26. dxe5 {[%clk 0:39:16]} 26... Qxe5
{[%clk 0:56:45]} 27. Qb4 {[%clk 0:38:26]} 27... Rb8 {[%clk 0:53:54]} 28. Rc5
{[%clk 0:29:03]} 28... Nc6 {[%clk 0:48:49]} 29. Rxe5 {[%clk 0:24:59]} 29... Nxb4
{[%clk 0:49:13]} 30. Rc5 {[%clk 0:24:09]} 30... c6 {[%clk 0:48:44]} 31. Rc4
{[%clk 0:20:02]} 31... Nd3 {[%clk 0:49:07]} 32. b3 {[%clk 0:16:22]} 32... Ne5
{[%clk 0:48:50]} 33. Rc3 {[%clk 0:16:30]} 33... Rd4 {[%clk 0:49:10]} 34. f4
{[%clk 0:15:56]} 34... Ng4 {[%clk 0:47:19]} 35. h3 {[%clk 0:15:39]} 35... Nf6
{[%clk 0:47:34]} 36. e5 {[%clk 0:13:10]} 36... Ne4 {[%clk 0:47:04]} 37. Rc4
{[%clk 0:10:58]} 37... Nxg3 {[%clk 0:47:24]} 38. Rxd4 {[%clk 0:10:24]} 38...
Ne2+ {[%clk 0:47:49]} 39. Kf2 {[%clk 0:10:50]} 39... Nxd4 {[%clk 0:48:15]} 40.
b4 {[%clk 0:10:18]} 40... Nc2 {[%clk 0:48:12]} 41. Rd1 {[%clk 0:10:03]} 41...
Nxb4 {[%clk 0:48:33]} 42. Ne3 {[%clk 0:10:22]} 42... c5 {[%clk 0:47:00]} 43. Nc4
{[%clk 0:09:13]} 43... Nc6 {[%clk 0:47:22]} 44. Rd7 {[%clk 0:09:18]} 44... h6
{[%clk 0:44:08]} 45. Ke3 {[%clk 0:08:33]} 45... g5 {[%clk 0:37:42]} 46. f5
{[%clk 0:04:43]} 46... Nxe5 {[%clk 0:36:45]} 47. Nxe5 {[%clk 0:02:37]} 47... Re8
{[%clk 0:37:12]} 48. Ke4 {[%clk 0:01:38]} 48... f6 {[%clk 0:37:39]} 49. Kd5
{[%clk 0:02:07]} 49... Rxe5+ {[%clk 0:38:03]} 50. Kd6 {[%clk 0:01:47]} 50...
Rxf5 {[%clk 0:38:14]} 51. Ke6 {[%clk 0:01:53]} 51... Rf1 {[%clk 0:37:53]} 52.
Rxb7 {[%clk 0:02:17]} 52... h5 {[%clk 0:37:51]} 53. Ra7 {[%clk 0:02:09]} 53...
g4 {[%clk 0:38:10]} 54. hxg4 {[%clk 0:01:46]} 54... hxg4 {[%clk 0:38:34]} 55.
Rxa6 {[%clk 0:01:13]} 55... g3 {[%clk 0:38:16]} 56. Ra8+ {[%clk 0:01:28]} 56...
Kg7 {[%clk 0:38:41]} 57. Ra7+ {[%clk 0:01:48]} 57... Kg6 {[%clk 0:39:06]} 58.
Ra8 {[%clk 0:02:13]} 58... Re1+ {[%clk 0:39:32]} 59. Kd5 {[%clk 0:02:42]} 59...
Kf7 {[%clk 0:39:28]} 60. Ra7+ {[%clk 0:02:44]} 60... Re7 {[%clk 0:39:48]} 0-1

[Variant "Standard"]
[Site "Europe Echecs"]

[Event "Championnat du monde jeunes U10"]
[Date "2024.11.26"]
[White "Vardanyan, Armen Art."]
[Black "Nikitakis, Michail"]
[WhiteElo "1735"]
[BlackElo "1818"]
[Round "11.24"]
[Result "1/2-1/2"]
[TimeControl "5400+30"]

1. d4 {[%clk 1:30:55]} 1... Nf6 {[%clk 1:30:55]} 2. c4 {[%clk 1:31:17]} 2... e6
{[%clk 1:31:19]} 3. Nc3 {[%clk 1:31:41]} 3... Bb4 {[%clk 1:31:45]} 4. Qc2 {[%clk
1:32:07]} 4... c5 {[%clk 1:32:07]} 5. a3 {[%clk 1:31:07]} 5... Bxc3+ {[%clk
1:26:26]} 6. bxc3 {[%clk 1:30:07]} 6... cxd4 {[%clk 1:13:55]} 7. cxd4 {[%clk
1:30:03]} 7... d5 {[%clk 1:12:48]} 8. e3 {[%clk 1:28:55]} 8... Nbd7 {[%clk
1:06:11]} 9. Nf3 {[%clk 1:26:47]} 9... O-O {[%clk 0:39:55]} 10. cxd5 {[%clk
1:22:30]} 10... exd5 {[%clk 0:37:58]} 11. Bd3 {[%clk 1:22:07]} 11... Re8 {[%clk
0:26:06]} 12. O-O {[%clk 1:19:28]} 12... Ne4 {[%clk 0:14:51]} 13. Nd2 {[%clk
1:16:26]} 13... Ndf6 {[%clk 0:13:05]} 14. f3 {[%clk 1:15:52]} 14... Nxd2 {[%clk
0:06:38]} 15. Bxd2 {[%clk 1:15:27]} 15... Re6 {[%clk 0:01:40]} 16. Qa2 {[%clk
1:12:01]} 16... Qe8 {[%clk 0:00:38]} 17. Rac1 {[%clk 1:11:37]} 17... Rxe3 {[%clk
0:00:32]} 18. Bb5 {[%clk 1:09:53]} 18... Qe7 {[%clk 0:00:31]} 19. Bxe3 {[%clk
1:09:26]} 19... Qxe3+ {[%clk 0:00:56]} 20. Qf2 {[%clk 1:09:22]} 20... Qxa3
{[%clk 0:01:08]} 21. Rfe1 {[%clk 1:06:49]} 21... Be6 {[%clk 0:00:33]} 22. Qd2
{[%clk 1:05:25]} 22... a6 {[%clk 0:00:33]} 23. Bd3 {[%clk 1:05:41]} 23... Qd6
{[%clk 0:00:32]} 24. Rb1 {[%clk 1:04:51]} 24... b5 {[%clk 0:00:33]} 25. Rec1
{[%clk 1:05:01]} 25... g6 {[%clk 0:00:31]} 26. Rc2 {[%clk 1:01:30]} 26... Nh5
{[%clk 0:00:31]} 27. Rbc1 {[%clk 1:00:52]} 27... Nf4 {[%clk 0:00:31]} 28. Bf1
{[%clk 1:00:55]} 28... Nh5 {[%clk 0:00:32]} 29. Rc6 {[%clk 1:00:55]} 29... Qe7
{[%clk 0:00:31]} 30. Bd3 {[%clk 0:59:02]} 30... Qf6 {[%clk 0:00:31]} 31. Qe3
{[%clk 0:58:51]} 31... Nf4 {[%clk 0:00:31]} 32. Bf1 {[%clk 0:58:53]} 32... Qg5
{[%clk 0:00:31]} 33. Kh1 {[%clk 0:58:23]} 33... Bd7 {[%clk 0:00:31]} 34. R6c2
Re8 35. Qf2 Bf5 36. Rd2 1/2-1/2

[Variant "Standard"]
[Site "Europe Echecs"]